[Event "36th Balaton IM 2018"]
[Site "Balatonlelle"]
[Date "2018.06.16"]
[Round "5"]
[White "McPhillips, Joseph"]
[Black "Klaric, Zlatko"]
[Result "1/2-1/2"]
[ECO "C60"]
[WhiteElo "2399"]
[BlackElo "2397"]
[Annotator "ChessBase"]
[PlyCount "138"]
[EventDate "2018.06.12"]
[EventType "swiss"]
[EventCountry "HUN"]
[SourceTitle "playchess.com"]
[Source "ChessBase"]
[SourceQuality "1"]
[TimeControl "40/5400+30:1800+30"]

1. e4 {[%emt 0:00:11]} e5 {[%emt 0:02:14]} 2. Nf3 {[%emt 0:00:08]} Nc6 {[%emt 0:00:03]} 3. Bb5 {[%emt 0:00:05]} Nge7 {[%emt 0:00:09]} 4. c3 {[%emt 0:00:21]} g6 {[%emt 0:01:41]} 5. d4 {[%emt 0:00:11]} exd4 {[%emt 0:00:05]} 6. cxd4 {[%emt 0:00:09]} d5 {[%emt 0:00:04]} 7. exd5 {[%emt 0:06:08]} Nxd5 {[%emt 0:00:09]} 8. O-O {[%emt 0:00:19]} Bg7 {[%emt 0:00:28]} 9. Bg5 {[%emt 0:20:25]} Qd6 {[%emt 0:00:34]} 10. Qe2+ {[%emt 0:00:33]} Be6 {[%emt 0:00:56]} 11. Nc3 {[%emt 0:01:50]} Nxc3 {[%emt 0:03:29]} 12. bxc3 {[%emt 0:00:04]} O-O {[%emt 0:00:06]} 13. Qd2 {[%emt 0:05:05]} Na5 {[%emt 0:04:07]} 14. Rfe1 {[%emt 0:08:03]} c6 {[%emt 0:07:26]} 15. Bd3 {[%emt 0:02:42]} Rfe8 {[%emt 0:01:24]} 16. Bh6 {[%emt 0:06:05]} Nc4 {[%emt 0:03:26]} 17. Qg5 {[%emt 0:02:05]} Bd5 {[%emt 0:04:21]} 18. Bxg7 {[%emt 0:09:02]} Kxg7 {[%emt 0:00:10]} 19. Bxc4 {[%emt 0:05:41]} Bxc4 {[%emt 0:00:08]} 20. Ne5 {[%emt 0:01:35]} Be6 {[%emt 0:03:06]} 21. Qf4 {[%emt 0:04:14]} Rad8 {[%emt 0:04:05]} 22. Qh4 {[%emt 0:02:05]} f6 {[%emt 0:01:55]} 23. Nd3 {[%emt 0:02:27]} Qa3 {[%emt 0:06:10]} 24. Nc5 {[%emt 0:02:05]} Qxc3 {[%emt 0:05:43]} 25. Qf4 {[%emt 0:07:30]} Bf7 {[%emt 0:08:19]} 26. Red1 {[%emt 0:00:00]} g5 {[%emt 0:02:37]} 27. Qc7 {[%emt 0:01:17]} Rxd4 {[%emt 0:01:07]} 28. Rdc1 {[%emt 0:00:02]} Qb4 {[%emt 0:11:34]} 29. h3 {[%emt 0:04:43]} Rd2 {[%emt 0:02:12]} 30. Rab1 {[%emt 0:04:12]} Qd4 {[%emt 0:04:05]} 31. Qg3 {[%emt 0:00:04]} Ree2 {[%emt 0:03:31]} 32. Rxb7 {[%emt 0:00:16]} Qxf2+ {[%emt 0:01:45]} 33. Qxf2 {[%emt 0:00:07]} Rxf2 {[%emt 0:00:11]} 34. Ne6+ {[%emt 0:00:51]} Kg8 {[%emt 0:11:14]} 35. Rb8+ {[%emt 0:00:04]} Be8 {[%emt 0:00:06]} 36. Nc7 {[%emt 0:00:44]} Rxg2+ {[%emt 0:00:27]} 37. Kh1 {[%emt 0:00:07]} Rh2+ {[%emt 0:00:55]} 38. Kg1 {[%emt 0:00:01]} Rdg2+ {[%emt 0:00:58]} 39. Kf1 {[%emt 0:00:01]} Rxa2 {[%emt 0:00:54]} 40. Kg1 {[%emt 0:00:00]} Rhg2+ {[%emt 0:04:10]} 41. Kh1 {[%emt 0:00:24]} Rh2+ {[%emt 0:15:37]} 42. Kg1 {[%emt 0:00:02]} Rag2+ {[%emt 0:01:32]} 43. Kf1 {[%emt 0:00:02]} Rd2 {[%emt 0:03:47]} 44. Kg1 {[%emt 0:03:05]} Kf7 {[%emt 0:05:11]} 45. Rxe8 {[%emt 0:01:17]} Rdg2+ {[%emt 0:02:13]} 46. Kf1 {[%emt 0:00:02]} Rc2 {[%emt 0:00:30]} 47. Rxc2 {[%emt 0:00:36]} Rxc2 {[%emt 0:00:02]} 48. Re3 {[%emt 0:00:20]} a5 {[%emt 0:00:45]} 49. Re4 {[%emt 0:07:11]} Ra2 {[%emt 0:01:02]} 50. Rc4 {[%emt 0:00:28]} a4 {[%emt 0:00:33]} 51. Rxc6 {[%emt 0:00:07]} a3 {[%emt 0:00:53]} 52. Nd5 {[%emt 0:00:54]} Rd2 {[%emt 0:01:08]} 53. Rxf6+ {[%emt 0:02:12]} Kg7 {[%emt 0:00:05]} 54. Ra6 {[%emt 0:00:15]} Rxd5 {[%emt 0:00:24]} 55. Rxa3 {[%emt 0:00:57]} Kg6 {[%emt 0:00:05]} 56. Ra4 {[%emt 0:02:45]} Rd2 {[%emt 0:00:27]} 57. h4 {[%emt 0:02:20]} h6 {[%emt 0:00:06]} 58. hxg5 {[%emt 0:00:19]} hxg5 {[%emt 0:00:03]} 59. Kg1 {[%emt 0:00:16]} Kh5 {[%emt 0:00:05]} 60. Ra3 {[%emt 0:00:58]} Kh4 {[%emt 0:00:06]} 61. Rb3 {[%emt 0:00:30]} g4 {[%emt 0:00:05]} 62. Ra3 {[%emt 0:00:30]} Re2 {[%emt 0:00:31]} 63. Rb3 {[%emt 0:00:16]} Kg5 {[%emt 0:00:11]} 64. Ra3 {[%emt 0:00:32]} Kf4 {[%emt 0:00:10]} 65. Rb3 {[%emt 0:01:15]} Re3 {[%emt 0:00:21]} 66. Rxe3 {[%emt 0:01:48]} Kxe3 {[%emt 0:00:07]} 67. Kg2 {[%emt 0:00:06]} Kf4 {[%emt 0:00:07]} 68. Kf2 {[%emt 0:00:03]} g3+ {[%emt 0:00:02]} 69. Kg2 {[%emt 0:00:05]} Kg4 {[%emt 0:00:03]} 1/2-1/2

[Event "36th Balaton IM 2018"]
[Site "Balatonlelle"]
[Date "2018.06.16"]
[Round "5"]
[White "Erturan, Yakup"]
[Black "Koksal, Ege"]
[Result "1/2-1/2"]
[ECO "C67"]
[WhiteElo "2384"]
[BlackElo "2356"]
[Annotator "NA"]
[PlyCount "23"]
[EventDate "2018.06.12"]
[EventType "swiss"]
[EventCountry "HUN"]
[SourceTitle "playchess.com"]
[Source "ChessBase"]
[SourceQuality "1"]
[TimeControl "40/5400+30:1800+30"]

1. e4 {[%emt 0:00:17]} e5 {[%emt 0:02:45]} 2. Nf3 {[%emt 0:00:42]} Nc6 {[%emt 0:01:45]} 3. Bb5 {[%emt 0:01:40]} Nf6 {[%emt 0:02:10]} 4. O-O {[%emt 0:02:30]} Nxe4 {[%emt 0:03:47]} 5. Re1 {[%emt 0:00:17]} d5 {[%emt 0:02:22]} 6. d4 {[%emt 0:05:05]} exd4 {[%emt 0:03:11]} 7. Nxd4 {[%emt 0:00:53]} Bd6 {[%emt 0:01:30]} 8. Nxc6 {[%emt 0:04:47]} Bxh2+ {[%emt 0:01:30]} 9. Kxh2 {[%emt 0:02:33]} Qh4+ {[%emt 0:00:16]} 10. Kg1 {[%emt 0:00:07]} Qxf2+ {[%emt 0:00:59]} 11. Kh2 {[%emt 0:00:25]} Qg3+ {[%emt 0:00:51]} 12. Kg1 {[%emt 0:00:17]} 1/2-1/2

[Event "36th Balaton IM 2018"]
[Site "Balatonlelle"]
[Date "2018.06.16"]
[Round "5"]
[White "Nagy, Bence"]
[Black "Moksh Amit Doshi"]
[Result "1-0"]
[ECO "C95"]
[WhiteElo "2354"]
[BlackElo "2203"]
[Annotator "NA"]
[PlyCount "77"]
[EventDate "2018.06.12"]
[EventType "swiss"]
[EventCountry "HUN"]
[SourceTitle "playchess.com"]
[Source "ChessBase"]
[SourceQuality "1"]
[TimeControl "40/5400+30:1800+30"]

1. e4 {[%emt 0:00:10]} e5 {[%emt 0:00:54]} 2. Nf3 {[%emt 0:00:15]} Nc6 {[%emt 0:00:06]} 3. Bb5 {[%emt 0:00:11]} a6 {[%emt 0:00:14]} 4. Ba4 {[%emt 0:00:10]} Nf6 {[%emt 0:00:07]} 5. O-O {[%emt 0:00:30]} Be7 {[%emt 0:00:06]} 6. Re1 {[%emt 0:00:11]} b5 {[%emt 0:00:07]} 7. Bb3 {[%emt 0:00:10]} d6 {[%emt 0:00:26]} 8. c3 {[%emt 0:01:40]} O-O {[%emt 0:00:08]} 9. h3 {[%emt 0:00:18]} Nb8 {[%emt 0:00:19]} 10. d4 {[%emt 0:00:29]} Nbd7 {[%emt 0:00:07]} 11. Nbd2 {[%emt 0:00:17]} Bb7 {[%emt 0:00:09]} 12. Bc2 {[%emt 0:00:16]} Re8 {[%emt 0:00:08]} 13. Nf1 {[%emt 0:00:32]} Bf8 {[%emt 0:00:16]} 14. Bg5 {[%emt 0:00:31]} h6 {[%emt 0:00:31]} 15. Bh4 {[%emt 0:00:52]} Qc8 {[%emt 0:00:15]} 16. dxe5 {[%emt 0:05:17]} dxe5 {[%emt 0:00:07]} 17. N3d2 {[%emt 0:02:57]} a5 {[%emt 0:07:41]} 18. Ne3 {[%emt 0:11:27]} Ra6 {[%emt 0:06:24]} 19. a4 {[%emt 0:07:07]} b4 {[%emt 0:01:43]} 20. Bd3 {[%emt 0:03:19]} Ra7 {[%emt 0:12:12]} 21. Qf3 {[%emt 0:05:43]} Nc5 {[%emt 0:01:34]} 22. Bc4 {[%emt 0:10:22]} Ncxe4 {[%emt 0:22:34]} 23. Ng4 {[%emt 0:03:59]} Nd6 {[%emt 0:02:27]} 24. Nxf6+ {[%emt 0:01:12]} gxf6 {[%emt 0:00:13]} 25. Qg3+ {[%emt 0:02:55]} Kh7 {[%emt 0:01:50]} 26. Bxf6 {[%emt 0:02:15]} Nxc4 {[%emt 0:01:36]} 27. Qd3+ {[%emt 0:04:22]} e4 {[%emt 0:01:25]} 28. Nxe4 {[%emt 0:11:54]} Rxe4 {[%emt 0:08:26]} 29. Rxe4 {[%emt 0:00:34]} Qf5 {[%emt 0:00:14]} 30. Qxc4 {[%emt 0:01:10]} Qxf6 {[%emt 0:00:06]} 31. Rf4 {[%emt 0:01:01]} Qg6 {[%emt 0:01:05]} 32. Rg4 {[%emt 0:03:52]} Qf6 {[%emt 0:05:19]} 33. Re1 {[%emt 0:03:26]} Ra6 {[%emt 0:07:16]} 34. Re8 {[%emt 0:01:39]} Ra8 {[%emt 0:05:04]} 35. Rf4 {[%emt 0:02:13]} Qg6 {[%emt 0:00:30]} 36. Rxf7+ {[%emt 0:00:19]} Bg7 {[%emt 0:00:09]} 37. Rxg7+ {[%emt 0:00:12]} Qxg7 {[%emt 0:00:28]} 38. Qd3+ {[%emt 0:00:08]} Qg6 {[%emt 0:00:07]} 39. Re7+ {[%emt 0:00:05]} 1-0

[Event "36th Balaton IM 2018"]
[Site "Balatonlelle"]
[Date "2018.06.16"]
[Round "5"]
[White "Saber, Yasser"]
[Black "Naumkin, Igor"]
[Result "1-0"]
[ECO "A07"]
[WhiteElo "2266"]
[BlackElo "2383"]
[Annotator "NA"]
[PlyCount "91"]
[EventDate "2018.06.12"]
[EventType "swiss"]
[EventCountry "HUN"]
[SourceTitle "playchess.com"]
[Source "ChessBase"]
[SourceQuality "1"]
[TimeControl "40/5400+30:1800+30"]

1. d3 {[%emt 0:00:10]} e5 {[%emt 0:05:22]} 2. Nf3 {[%emt 0:00:09]} Nc6 {[%emt 0:00:12]} 3. g3 {[%emt 0:00:03]} d5 {[%emt 0:00:16]} 4. Bg2 {[%emt 0:02:39]} Nf6 {[%emt 0:00:13]} 5. O-O {[%emt 0:00:05]} Be7 {[%emt 0:00:17]} 6. a3 {[%emt 0:04:20]} a5 {[%emt 0:00:47]} 7. Nc3 {[%emt 0:00:13]} d4 {[%emt 0:00:58]} 8. Nb5 {[%emt 0:00:14]} O-O {[%emt 0:03:30]} 9. e3 {[%emt 0:00:35]} dxe3 {[%emt 0:05:40]} 10. Bxe3 {[%emt 0:01:08]} Bg4 {[%emt 0:01:28]} 11. h3 {[%emt 0:01:24]} Bh5 {[%emt 0:00:08]} 12. g4 {[%emt 0:06:16]} Bg6 {[%emt 0:00:12]} 13. Nh4 {[%emt 0:00:22]} Qd7 {[%emt 0:09:05]} 14. Nxg6 {[%emt 0:02:20]} hxg6 {[%emt 0:00:27]} 15. d4 {[%emt 0:06:22]} exd4 {[%emt 0:09:59]} 16. Nxd4 {[%emt 0:00:10]} Nxd4 {[%emt 0:01:03]} 17. Qxd4 {[%emt 0:00:31]} Qc8 {[%emt 0:02:58]} 18. Rad1 {[%emt 0:00:58]} Rd8 {[%emt 0:02:51]} 19. Qc4 {[%emt 0:01:24]} c6 {[%emt 0:01:32]} 20. Bb6 {[%emt 0:08:52]} Rxd1 {[%emt 0:01:13]} 21. Rxd1 {[%emt 0:00:03]} Nd7 {[%emt 0:00:59]} 22. Be3 {[%emt 0:00:39]} Bf6 {[%emt 0:01:48]} 23. c3 {[%emt 0:09:17]} g5 {[%emt 0:03:35]} 24. Qe4 {[%emt 0:11:11]} Nf8 {[%emt 0:06:50]} 25. h4 {[%emt 0:01:30]} Ne6 {[%emt 0:02:18]} 26. h5 {[%emt 0:11:04]} Nf4 {[%emt 0:03:00]} 27. Bf3 {[%emt 0:03:22]} Nd5 {[%emt 0:04:55]} 28. Bc1 {[%emt 0:05:02]} Qf8 {[%emt 0:04:28]} 29. Qf5 {[%emt 0:03:10]} Ne7 {[%emt 0:01:12]} 30. Qd7 {[%emt 0:01:33]} Qb8 {[%emt 0:07:46]} 31. Be3 {[%emt 0:00:14]} Kh8 {[%emt 0:03:42]} 32. Kg2 {[%emt 0:07:14]} a4 {[%emt 0:06:27]} 33. Bd4 {[%emt 0:07:05]} Qf4 {[%emt 0:03:40]} 34. Re1 {[%emt 0:00:16]} Ng8 {[%emt 0:04:33]} 35. Re4 {[%emt 0:03:54]} Qd2 {[%emt 0:00:44]} 36. Qxf7 {[%emt 0:00:47]} Bxd4 {[%emt 0:00:28]} 37. Rxd4 {[%emt 0:01:42]} Qxb2 {[%emt 0:00:15]} 38. Be4 {[%emt 0:01:44]} Qb3 {[%emt 0:03:37]} 39. Qg6 {[%emt 0:00:48]} Nf6 {[%emt 0:00:19]} 40. h6 {[%emt 0:00:00]} Qg8 {[%emt 0:00:23]} 41. Bf5 {[%emt 0:09:26]} Rf8 {[%emt 0:08:59]} 42. Rd6 {[%emt 0:05:43]} Re8 {[%emt 0:05:12]} 43. Rxf6 {[%emt 0:04:23]} Qd5+ {[%emt 0:00:09]} 44. Kh2 {[%emt 0:00:16]} Qe5+ {[%emt 0:00:27]} 45. Kh3 {[%emt 0:00:04]} Qxc3+ {[%emt 0:00:30]} 46. Kg2 {[%emt 0:00:04]} 1-0

[Event "36th Balaton IM 2018"]
[Site "Balatonlelle"]
[Date "2018.06.16"]
[Round "5"]
[White "Vegh, Endre"]
[Black "Gungl, Theo"]
[Result "1/2-1/2"]
[ECO "D10"]
[WhiteElo "2260"]
[BlackElo "2237"]
[Annotator "NA"]
[PlyCount "83"]
[EventDate "2018.06.12"]
[EventType "swiss"]
[EventCountry "HUN"]
[SourceTitle "playchess.com"]
[Source "ChessBase"]
[SourceQuality "1"]
[TimeControl "40/5400+30:1800+30"]

1. d4 {[%emt 0:00:14]} d5 {[%emt 0:00:35]} 2. c4 {[%emt 0:00:20]} c6 {[%emt 0:00:07]} 3. cxd5 {[%emt 0:00:34]} cxd5 {[%emt 0:00:02]} 4. Bf4 {[%emt 0:00:16]} Nc6 {[%emt 0:00:34]} 5. e3 {[%emt 0:00:29]} Nf6 {[%emt 0:00:25]} 6. Nc3 {[%emt 0:00:17]} a6 {[%emt 0:00:30]} 7. Be2 {[%emt 0:00:46]} Bf5 {[%emt 0:02:52]} 8. g4 {[%emt 0:00:35]} Be6 {[%emt 0:14:47]} 9. g5 {[%emt 0:03:50]} Nd7 {[%emt 0:08:28]} 10. h4 {[%emt 0:03:31]} Nb6 {[%emt 0:03:24]} 11. Nf3 {[%emt 0:05:49]} Bg4 {[%emt 0:08:25]} 12. Ne5 {[%emt 0:08:00]} Bxe2 {[%emt 0:00:49]} 13. Qxe2 {[%emt 0:00:08]} Rc8 {[%emt 0:00:43]} 14. Nd3 {[%emt 0:06:21]} e6 {[%emt 0:04:46]} 15. Nc5 {[%emt 0:04:41]} Bxc5 {[%emt 0:00:27]} 16. dxc5 {[%emt 0:00:06]} Nd7 {[%emt 0:00:33]} 17. Bd6 {[%emt 0:05:42]} Qa5 {[%emt 0:03:20]} 18. a3 {[%emt 0:02:45]} Nxc5 {[%emt 0:05:52]} 19. O-O {[%emt 0:10:14]} Nb3 {[%emt 0:01:52]} 20. Rad1 {[%emt 0:02:09]} Rd8 {[%emt 0:03:26]} 21. Bg3 {[%emt 0:02:32]} O-O {[%emt 0:02:10]} 22. Qc2 {[%emt 0:08:21]} Qb6 {[%emt 0:00:10]} 23. Na4 {[%emt 0:03:50]} Qb5 {[%emt 0:00:11]} 24. Nc3 {[%emt 0:07:05]} Qc4 {[%emt 0:00:07]} 25. Qd3 {[%emt 0:01:35]} b5 {[%emt 0:07:51]} 26. e4 {[%emt 0:04:49]} Qxd3 {[%emt 0:09:02]} 27. Rxd3 {[%emt 0:00:06]} d4 {[%emt 0:00:16]} 28. Nxb5 {[%emt 0:04:05]} Nc5 {[%emt 0:00:06]} 29. Rdd1 {[%emt 0:00:08]} axb5 {[%emt 0:01:02]} 30. Rc1 {[%emt 0:00:05]} Nxe4 {[%emt 0:00:07]} 31. Rxc6 {[%emt 0:00:25]} Nxg3 {[%emt 0:11:43]} 32. fxg3 {[%emt 0:00:06]} Rd5 {[%emt 0:00:21]} 33. Kf2 {[%emt 0:08:15]} d3 {[%emt 0:07:49]} 34. Rd1 {[%emt 0:01:03]} Rfd8 {[%emt 0:00:19]} 35. Rd2 {[%emt 0:01:00]} g6 {[%emt 0:02:22]} 36. Rc3 {[%emt 0:00:24]} h6 {[%emt 0:01:00]} 37. gxh6 {[%emt 0:00:26]} Kh7 {[%emt 0:01:01]} 38. Ke3 {[%emt 0:01:39]} Re5+ {[%emt 0:00:08]} 39. Kf3 {[%emt 0:00:30]} Red5 {[%emt 0:00:05]} 40. Ke3 {[%emt 0:00:00]} Re5+ {[%emt 0:00:04]} 41. Kf3 {[%emt 0:00:49]} Red5 {[%emt 0:03:19]} 42. Ke4 1/2-1/2

[Event "36th Balaton IM 2018"]
[Site "Balatonlelle"]
[Date "2018.06.16"]
[Round "5"]
[White "Urh, Zala"]
[Black "Gorti, Akshita"]
[Result "1/2-1/2"]
[ECO "C17"]
[WhiteElo "2248"]
[BlackElo "2258"]
[Annotator "NA"]
[PlyCount "54"]
[EventDate "2018.06.12"]
[EventType "swiss"]
[EventCountry "HUN"]
[SourceTitle "playchess.com"]
[Source "ChessBase"]
[SourceQuality "1"]
[TimeControl "40/5400+30:1800+30"]

1. e4 {[%emt 0:00:05]} e6 {[%emt 0:00:44]} 2. d4 {[%emt 0:00:22]} d5 {[%emt 0:00:08]} 3. Nc3 {[%emt 0:01:10]} Bb4 {[%emt 0:00:09]} 4. e5 {[%emt 0:00:24]} c5 {[%emt 0:00:00]} 5. Bd2 {[%emt 0:00:41]} Nh6 {[%emt 0:00:51]} 6. Nf3 {[%emt 0:08:54]} Nf5 {[%emt 0:02:05]} 7. dxc5 {[%emt 0:12:16]} Bxc5 {[%emt 0:03:43]} 8. Bd3 {[%emt 0:03:30]} h6 {[%emt 0:08:52]} 9. O-O {[%emt 0:07:21]} Nc6 {[%emt 0:01:21]} 10. Qe2 {[%emt 0:07:40]} O-O {[%emt 0:01:50]} 11. Rad1 {[%emt 0:00:49]} Nh4 {[%emt 0:11:51]} 12. Bf4 {[%emt 0:08:43]} Bd7 {[%emt 0:04:54]} 13. Rfe1 {[%emt 0:07:26]} a6 {[%emt 0:09:54]} 14. g3 {[%emt 0:05:42]} Nxf3+ {[%emt 0:03:28]} 15. Qxf3 {[%emt 0:00:08]} Nd4 {[%emt 0:06:40]} 16. Qh5 {[%emt 0:09:12]} f5 {[%emt 0:05:15]} 17. exf6 {[%emt 0:18:06]} Qxf6 {[%emt 0:10:05]} 18. Nxd5 {[%emt 0:00:18]} exd5 {[%emt 0:00:40]} 19. Qxd5+ {[%emt 0:00:01]} Kh8 {[%emt 0:01:39]} 20. Qxd7 {[%emt 0:01:12]} Nf3+ {[%emt 0:00:13]} 21. Kg2 {[%emt 0:00:29]} Nxe1+ {[%emt 0:04:07]} 22. Rxe1 {[%emt 0:00:01]} Qd4 {[%emt 0:03:28]} 23. Qxd4 {[%emt 0:02:29]} Bxd4 {[%emt 0:00:01]} 24. Re7 {[%emt 0:00:41]} b5 {[%emt 0:01:15]} 25. b3 {[%emt 0:01:08]} Rfe8 {[%emt 0:01:59]} 26. Rd7 {[%emt 0:01:29]} Bf6 {[%emt 0:02:22]} 27. Rd6 {[%emt 0:00:44]} Red8 {[%emt 0:01:40]} 1/2-1/2

[Event "36th Balaton IM 2018"]
[Site "Balatonlelle"]
[Date "2018.06.18"]
[Round "7"]
[White "Saber, Yasser"]
[Black "McPhillips, Joseph"]
[Result "0-1"]
[ECO "E56"]
[WhiteElo "2266"]
[BlackElo "2399"]
[Annotator "NA"]
[PlyCount "68"]
[EventDate "2018.06.12"]
[EventType "swiss"]
[EventCountry "HUN"]
[SourceTitle "playchess.com"]
[Source "ChessBase"]
[SourceQuality "1"]
[TimeControl "40/5400+30:1800+30"]

1. d4 {[%emt 0:00:07]} Nf6 {[%emt 0:00:59]} 2. c4 {[%emt 0:00:02]} e6 {[%emt 0:00:19]} 3. Nc3 {[%emt 0:00:12]} Bb4 {[%emt 0:00:10]} 4. e3 {[%emt 0:00:15]} O-O {[%emt 0:00:17]} 5. Bd3 {[%emt 0:00:12]} d5 {[%emt 0:00:54]} 6. Nf3 {[%emt 0:00:09]} c5 {[%emt 0:00:17]} 7. O-O {[%emt 0:00:06]} Nc6 {[%emt 0:00:07]} 8. a3 {[%emt 0:00:05]} Ba5 {[%emt 0:00:20]} 9. dxc5 {[%emt 0:10:08]} Bxc3 {[%emt 0:04:48]} 10. bxc3 {[%emt 0:00:03]} dxc4 {[%emt 0:03:33]} 11. Bxc4 {[%emt 0:00:04]} Qa5 {[%emt 0:00:09]} 12. Qc2 $11 {[%emt 0:28:25]} Qxc5 {[%emt 0:02:11]} 13. Bd3 {[%emt 0:00:23]} b6 {[%emt 0:19:57]} 14. Bb2 {[%emt 0:02:55]} Bb7 {[%emt 0:05:29]} 15. c4 {[%emt 0:00:42]} Qh5 {[%emt 0:00:45]} 16. Be2 {[%emt 0:12:06]} Rac8 {[%emt 0:08:53]} 17. Rfd1 {[%emt 0:03:02]} Na5 {[%emt 0:03:28]} 18. Rd4 {[%emt 0:02:16]} Bxf3 {[%emt 0:03:53]} 19. Bxf3 {[%emt 0:00:04]} Qg6 {[%emt 0:00:03]} 20. Qc3 {[%emt 0:16:12]} e5 {[%emt 0:08:40]} 21. Rh4 {[%emt 0:00:08]} Rc5 {[%emt 0:00:04]} 22. Rd1 {[%emt 0:08:26]} Qg5 {[%emt 0:05:27]} 23. g3 {[%emt 0:01:01]} Qf5 {[%emt 0:00:18]} 24. Bd5 {[%emt 0:02:45]} Re8 {[%emt 0:04:51]} 25. e4 {[%emt 0:02:05]} Qc8 {[%emt 0:00:36]} 26. Rc1 {[%emt 0:02:53]} h6 {[%emt 0:07:20]} 27. f4 {[%emt 0:00:50]} Nxd5 {[%emt 0:01:08]} 28. exd5 {[%emt 0:00:18]} Rxc4 {[%emt 0:01:01]} 29. Qe3 {[%emt 0:03:21]} exf4 {[%emt 0:00:54]} 30. Rxc4 {[%emt 0:03:34]} Nxc4 {[%emt 0:00:16]} 31. Qd4 {[%emt 0:01:33]} Nxb2 {[%emt 0:00:14]} 32. Rxf4 {[%emt 0:00:37]} Qc5 {[%emt 0:02:10]} 33. d6 {[%emt 0:00:58]} Nd3 {[%emt 0:00:59]} 34. d7 {[%emt 0:00:23]} Rd8 {[%emt 0:00:05]} 0-1

[Event "36th Balaton IM 2018"]
[Site "Balatonlelle"]
[Date "2018.06.18"]
[Round "7"]
[White "Urh, Zala"]
[Black "Moksh Amit Doshi"]
[Result "0-1"]
[ECO "D97"]
[WhiteElo "2248"]
[BlackElo "2203"]
[Annotator "NA"]
[PlyCount "136"]
[EventDate "2018.06.12"]
[EventType "swiss"]
[EventCountry "HUN"]
[SourceTitle "playchess.com"]
[Source "ChessBase"]
[SourceQuality "1"]
[TimeControl "40/5400+30:1800+30"]

1. d4 {[%emt 0:03:45]} Nf6 {[%emt 0:00:54]} 2. c4 {[%emt 0:00:42]} g6 {[%emt 0:00:09]} 3. Nc3 {[%emt 0:00:09]} d5 {[%emt 0:00:07]} 4. Nf3 {[%emt 0:00:36]} Bg7 {[%emt 0:00:07]} 5. Qb3 {[%emt 0:00:18]} dxc4 {[%emt 0:00:10]} 6. Qxc4 {[%emt 0:00:09]} O-O {[%emt 0:00:20]} 7. e4 {[%emt 0:00:12]} a6 {[%emt 0:00:15]} 8. Be2 {[%emt 0:01:19]} b5 {[%emt 0:00:12]} 9. Qb3 {[%emt 0:00:15]} c5 {[%emt 0:00:34]} 10. dxc5 {[%emt 0:00:30]} Be6 {[%emt 0:00:38]} 11. Qc2 {[%emt 0:02:40] D97: Grünfeldindisch (Russisches System, Ragosin-Variante)} Nbd7 {[%emt 0:03:58]} 12. Be3 {[%emt 0:04:22]} Rc8 $1 {[%emt 0:00:05]} 13. Rd1 {[%emt 0:07:37]} b4 {[%emt 0:00:09] LiveBook: 81 Games} 14. Na4 {[%emt 0:09:23]} (14. Nd5 Bxd5 15. exd5 Nxc5 16. O-O Nce4 17. Qd3 Qd6 18. Qxa6 Rc2 {½-½ (67) Giri,A (2755)-Nepomniachtchi,I (2740) Moscow 2016}) 14... Qa5 {[%emt 0:00:21]} 15. b3 {[%emt 0:01:11]} Ng4 {[%emt 0:11:42]} 16. Bd4 {[%emt 0:01:56]} Bxd4 {[%emt 0:01:37]} 17. Nxd4 {[%emt 0:03:48]} Nxc5 {[%emt 0:00:58]} 18. Nxc5 {[%emt 0:01:17]} Rxc5 {[%emt 0:00:09]} 19. Qd2 $146 {[%emt 0:05:47]} Nf6 {[%emt 0:02:28]} 20. Nxe6 {[%emt 0:05:45]} fxe6 {[%emt 0:00:13]} 21. f3 {[%emt 0:02:51]} e5 {[%emt 0:17:44]} 22. Bc4+ {[%emt 0:03:43]} Kg7 {[%emt 0:00:17]} 23. O-O {[%emt 0:00:29]} Rc7 {[%emt 0:08:14]} 24. Qe3 {[%emt 0:05:59]} Rd7 {[%emt 0:13:42]} 25. Be6 {[%emt 0:26:58]} Rxd1 {[%emt 0:08:41]} 26. Rxd1 {[%emt 0:00:01]} Qc7 {[%emt 0:01:16]} 27. Bc4 {[%emt 0:01:19]} a5 {[%emt 0:00:29]} 28. Qd2 {[%emt 0:01:11]} Rb8 {[%emt 0:02:20]} 29. Qd3 {[%emt 0:01:41]} Kf8 {[%emt 0:04:41]} 30. g3 {[%emt 0:00:42]} Qb6+ {[%emt 0:02:09]} 31. Kg2 {[%emt 0:00:08]} Kg7 {[%emt 0:01:03]} 32. Qd2 {[%emt 0:00:41]} Ra8 {[%emt 0:01:36]} 33. Qf2 {[%emt 0:01:51]} Qc7 {[%emt 0:00:41]} 34. Qd2 {[%emt 0:00:46]} Rb8 {[%emt 0:01:01]} 35. Qd3 {[%emt 0:01:40]} Rb6 {[%emt 0:02:23]} 36. Qd8 {[%emt 0:00:51]} Qxd8 {[%emt 0:00:05]} 37. Rxd8 {[%emt 0:00:06]} Rd6 {[%emt 0:00:05]} 38. Rxd6 {[%emt 0:02:23]} exd6 {[%emt 0:00:06]} 39. Kf2 {[%emt 0:00:34]} Nd7 {[%emt 0:02:02]} 40. Bb5 {[%emt 0:00:00]} Nc5 {[%emt 0:00:43]} 41. Ke3 {[%emt 0:06:40]} g5 {[%emt 0:02:55]} 42. Bc4 {[%emt 0:04:45]} Kf6 {[%emt 0:00:19]} 43. Bd5 {[%emt 0:00:59]} h5 {[%emt 0:02:43]} 44. h3 {[%emt 0:03:44]} h4 {[%emt 0:00:22]} 45. gxh4 {[%emt 0:07:00]} gxh4 {[%emt 0:00:08]} 46. Bc4 {[%emt 0:08:16]} Kg5 {[%emt 0:01:16]} 47. Bd5 {[%emt 0:00:01]} Nd7 {[%emt 0:02:02]} 48. Be6 {[%emt 0:00:16]} Nf6 $11 {[%emt 0:01:21]} 49. Bf7 {[%emt 0:00:49]} Nh7 {[%emt 0:00:50]} 50. Be6 {[%emt 0:00:16]} Nf8 {[%emt 0:01:26]} 51. Bg4 {[%emt 0:03:10]} Ng6 {[%emt 0:00:32]} 52. Kd3 {[%emt 0:00:50]} Nf4+ {[%emt 0:00:05]} 53. Kc4 {[%emt 0:00:31]} Ne2 {[%emt 0:00:28]} 54. Kb5 {[%emt 0:01:43]} Nc3+ {[%emt 0:00:15]} 55. Kxa5 {[%emt 0:00:11]} Nxa2 {[%emt 0:00:03]} 56. Kb5 {[%emt 0:00:17]} Kf4 {[%emt 0:00:18]} 57. Kc4 {[%emt 0:00:20]} Ke3 {[%emt 0:00:55]} 58. Kd5 {[%emt 0:02:17]} Nc1 {[%emt 0:00:37]} 59. Kxd6 {[%emt 0:00:17]} Nxb3 {[%emt 0:00:25]} 60. Kxe5 {[%emt 0:00:02]} Nd4 {[%emt 0:02:07]} 61. Kf6 {[%emt 0:01:55]} b3 {[%emt 0:00:29]} 62. e5 {[%emt 0:00:12]} b2 {[%emt 0:00:13]} 63. e6 {[%emt 0:00:06]} b1=Q {[%emt 0:01:41]} 64. e7 {[%emt 0:00:04]} Qb8 {[%emt 0:02:21]} 65. Kf7 {[%emt 0:01:06]} Qf4+ {[%emt 0:00:08]} 66. Kg8 {[%emt 0:00:57]} Qg5+ {[%emt 0:00:34]} 67. Kf7 {[%emt 0:00:07]} Qd5+ {[%emt 0:00:20]} 68. Kf8 {[%emt 0:00:45]} Ne6+ {[%emt 0:00:12]} 0-1